[Event "*** Titled Tuesday Blitz"]
[Site "Chess.com"]
[Date "2019.01.01"]
[Round "7"]
[White "ElenaPershina"]
[Black "Morshynska"]
[Result "0-1"]
[WhiteElo "1922"]
[BlackElo "2091"]
[TimeControl "180+2"]
[EndTime "14:39:36 PST"]
[Termination "Morshynska won by resignation"]

1. c4 {[%clk 0:03:01.8]} 1... e5 {[%clk 0:03:00.3]} 2. g3 {[%clk 0:03:00.8]}
2... Nf6 {[%clk 0:03:00.3]} 3. Bg2 {[%clk 0:03:02.2]} 3... Nc6 {[%clk
0:02:59.7]} 4. e3 {[%clk 0:03:02]} 4... d5 {[%clk 0:02:58.8]} 5. cxd5 {[%clk
0:03:02.4]} 5... Nxd5 {[%clk 0:03:00.7]} 6. a3 {[%clk 0:02:38.2]} 6... Be6
{[%clk 0:02:57.9]} 7. Ne2 {[%clk 0:02:36.1]} 7... Qd7 {[%clk 0:02:57]} 8. O-O
{[%clk 0:02:36.4]} 8... a5 {[%clk 0:02:52.6]} 9. Nbc3 {[%clk 0:02:31]} 9... h5
{[%clk 0:02:46.1]} 10. Nxd5 {[%clk 0:02:26.1]} 10... Bxd5 {[%clk 0:02:48]} 11.
h4 {[%clk 0:02:16.4]} 11... g5 {[%clk 0:02:18.6]} 12. Bxd5 {[%clk 0:01:53.8]}
12... Qxd5 {[%clk 0:02:20.5]} 13. Nc3 {[%clk 0:01:54.6]} 13... Qe6 {[%clk
0:02:10.5]} 14. Qa4 {[%clk 0:01:42.1]} 14... gxh4 {[%clk 0:01:57.9]} 15. Qxh4
{[%clk 0:01:10.3]} 15... Be7 {[%clk 0:01:58.2]} 16. Qe4 {[%clk 0:01:08.6]} 16...
O-O-O {[%clk 0:01:20.3]} 17. b4 {[%clk 0:00:54.1]} 17... f5 {[%clk 0:00:49.9]}
18. Qf3 {[%clk 0:00:44]} 18... e4 {[%clk 0:00:47.1]} 19. Qe2 {[%clk 0:00:37.7]}
19... h4 {[%clk 0:00:45.8]} 20. Bb2 {[%clk 0:00:27.5]} 20... Ne5 {[%clk
0:00:40.6]} 21. f4 {[%clk 0:00:27.7]} 21... Nf3+ {[%clk 0:00:34.4]} 22. Rxf3
{[%clk 0:00:28.1]} 22... exf3 {[%clk 0:00:36.3]} 23. Qxf3 {[%clk 0:00:29.4]}
23... hxg3 {[%clk 0:00:31.8]} 24. Nb5 {[%clk 0:00:26.4]} 24... Bf6 {[%clk
0:00:22]} 25. Rc1 {[%clk 0:00:26.9]} 25... Rd7 {[%clk 0:00:20.2]} 26. Bxf6
{[%clk 0:00:20.3]} 26... Qxf6 {[%clk 0:00:22.1]} 27. bxa5 {[%clk 0:00:19.4]}
27... Kb8 {[%clk 0:00:18.7]} 28. Nd4 {[%clk 0:00:20]} 28... g2 {[%clk
0:00:17.7]} 29. a6 {[%clk 0:00:19.1]} 29... Qxa6 {[%clk 0:00:16.7]} 30. Qxg2
{[%clk 0:00:16.4]} 30... Qf6 {[%clk 0:00:13.9]} 31. Kf2 {[%clk 0:00:16.8]} 31...
Rg7 {[%clk 0:00:13.9]} 32. Nc6+ {[%clk 0:00:17.9]} 32... bxc6 {[%clk 0:00:13.3]}
33. Rb1+ {[%clk 0:00:19]} 33... Kc8 {[%clk 0:00:13.7]} 34. Qf3 {[%clk
0:00:17.9]} 34... Rh2+ {[%clk 0:00:13.2]} 35. Kf1 {[%clk 0:00:19.5]} 35... Qg6
{[%clk 0:00:12]} 0-1

[Event "*** Titled Tuesday Blitz"]
[Site "Chess.com"]
[Date "2019.01.01"]
[Round "7"]
[White "nihalsarin"]
[Black "jcibarra"]
[Result "1-0"]
[WhiteElo "2958"]
[BlackElo "2740"]
[TimeControl "180+2"]
[EndTime "14:39:38 PST"]
[Termination "nihalsarin won by resignation"]

1. d4 {[%clk 0:02:58.1]} 1... Nf6 {[%clk 0:03:01]} 2. Bg5 {[%clk 0:02:51.8]}
2... d5 {[%clk 0:03:00.3]} 3. e3 {[%clk 0:02:51.2]} 3... c5 {[%clk 0:03:01.1]}
4. dxc5 {[%clk 0:02:48.7]} 4... e6 {[%clk 0:02:57.4]} 5. Nf3 {[%clk 0:02:47.3]}
5... Bxc5 {[%clk 0:02:57.7]} 6. Nbd2 {[%clk 0:02:48.8]} 6... O-O {[%clk
0:02:54.5]} 7. Bd3 {[%clk 0:02:49.9]} 7... b6 {[%clk 0:02:54.2]} 8. e4 {[%clk
0:02:47.3]} 8... Be7 {[%clk 0:02:23]} 9. h4 {[%clk 0:02:11.8]} 9... h6 {[%clk
0:02:12.3]} 10. Bxf6 {[%clk 0:02:08.1]} 10... Bxf6 {[%clk 0:02:10.4]} 11. e5
{[%clk 0:02:09.7]} 11... Be7 {[%clk 0:02:11.4]} 12. Nd4 {[%clk 0:02:08.8]} 12...
Ba6 {[%clk 0:02:09]} 13. Qh5 {[%clk 0:01:59.6]} 13... Bxd3 {[%clk 0:02:09.9]}
14. cxd3 {[%clk 0:02:01.5]} 14... Qd7 {[%clk 0:02:01.6]} 15. Rc1 {[%clk
0:01:55.3]} 15... Rc8 {[%clk 0:02:01]} 16. Rxc8+ {[%clk 0:01:51.4]} 16... Qxc8
{[%clk 0:02:02.9]} 17. O-O {[%clk 0:01:52.9]} 17... Nd7 {[%clk 0:01:56.4]} 18.
a3 {[%clk 0:01:45]} 18... Qc7 {[%clk 0:01:53]} 19. N2f3 {[%clk 0:01:34.9]} 19...
Bf8 {[%clk 0:01:53.2]} 20. Re1 {[%clk 0:01:29.3]} 20... g6 {[%clk 0:01:50.1]}
21. Qg4 {[%clk 0:01:29.8]} 21... h5 {[%clk 0:01:48]} 22. Qf4 {[%clk 0:01:29.7]}
22... Bg7 {[%clk 0:01:49.3]} 23. Nb5 {[%clk 0:01:04.7]} 23... Qc2 {[%clk
0:01:37.8]} 24. Nd6 {[%clk 0:01:02.6]} 24... Rf8 {[%clk 0:01:37.9]} 25. d4
{[%clk 0:01:04.1]} 25... f6 {[%clk 0:01:00.7]} 26. exf6 {[%clk 0:01:03.4]} 26...
Rxf6 {[%clk 0:01:02.6]} 27. Qe3 {[%clk 0:00:52.5]} 27... Kf8 {[%clk 0:00:52.8]}
28. Ng5 {[%clk 0:00:48.7]} 28... Ke7 {[%clk 0:00:52.5]} 29. Nxe6 {[%clk
0:00:44.8]} 29... Kxd6 {[%clk 0:00:49.8]} 30. Nxg7 {[%clk 0:00:42.5]} 30... Rf8
{[%clk 0:00:34.8]} 31. Rc1 {[%clk 0:00:36.7]} 31... Qe4 {[%clk 0:00:34.3]} 32.
Qg5 {[%clk 0:00:18.2]} 32... Qf4 {[%clk 0:00:13.5]} 33. Ne8+ {[%clk 0:00:16.6]}
33... Ke6 {[%clk 0:00:12.3]} 34. Re1+ {[%clk 0:00:18.2]} 34... Qe4 {[%clk
0:00:08.5]} 35. Rxe4+ {[%clk 0:00:18.3]} 35... dxe4 {[%clk 0:00:10.4]} 36. Qxg6+
{[%clk 0:00:19.5]} 36... Ke7 {[%clk 0:00:11.2]} 37. Nc7 {[%clk 0:00:20.8]} 37...
Nf6 {[%clk 0:00:12]} 38. d5 {[%clk 0:00:20.7]} 38... Kd6 {[%clk 0:00:09.6]} 39.
Ne6 {[%clk 0:00:21.1]} 1-0

[Event "*** Titled Tuesday Blitz"]
[Site "Chess.com"]
[Date "2019.01.01"]
[Round "7"]
[White "aquaticpineapples"]
[Black "nitpicker"]
[Result "0-1"]
[WhiteElo "2091"]
[BlackElo "2218"]
[TimeControl "180+2"]
[EndTime "14:39:40 PST"]
[Termination "nitpicker won by resignation"]

1. d4 {[%clk 0:03:01.9]} 1... Nf6 {[%clk 0:02:57.1]} 2. Nf3 {[%clk 0:03:02.9]}
2... b6 {[%clk 0:02:53.6]} 3. e3 {[%clk 0:03:01.8]} 3... Bb7 {[%clk 0:02:54.3]}
4. Bd3 {[%clk 0:03:02.7]} 4... e6 {[%clk 0:02:53.9]} 5. O-O {[%clk 0:03:03.6]}
5... d6 {[%clk 0:02:51.3]} 6. Qe2 {[%clk 0:03:02.6]} 6... Nbd7 {[%clk
0:02:46.5]} 7. b3 {[%clk 0:03:01]} 7... g6 {[%clk 0:02:44.1]} 8. Bb2 {[%clk
0:02:58]} 8... Bg7 {[%clk 0:02:45]} 9. c4 {[%clk 0:02:57.3]} 9... O-O {[%clk
0:02:44.2]} 10. Nbd2 {[%clk 0:02:56.3]} 10... Qe7 {[%clk 0:02:43]} 11. e4 {[%clk
0:02:50.8]} 11... e5 {[%clk 0:02:44]} 12. Rfe1 {[%clk 0:02:46.2]} 12... Rae8
{[%clk 0:02:28.9]} 13. Rad1 {[%clk 0:02:41]} 13... Nh5 {[%clk 0:02:25]} 14. d5
{[%clk 0:02:32.5]} 14... Nf4 {[%clk 0:02:22.4]} 15. Qf1 {[%clk 0:02:30.7]} 15...
Nxd3 {[%clk 0:02:19.6]} 16. Qxd3 {[%clk 0:02:28.4]} 16... Nc5 {[%clk 0:02:10.1]}
17. Qc2 {[%clk 0:02:25.8]} 17... f5 {[%clk 0:02:07.7]} 18. b4 {[%clk 0:02:24]}
18... Nxe4 {[%clk 0:02:08.5]} 19. Nxe4 {[%clk 0:02:24.8]} 19... fxe4 {[%clk
0:02:09.6]} 20. Rxe4 {[%clk 0:02:17.9]} 20... Bc8 {[%clk 0:02:07.7]} 21. Ree1
{[%clk 0:02:11.9]} 21... Bg4 {[%clk 0:02:05.7]} 22. Rc1 {[%clk 0:01:47.3]} 22...
Rxf3 {[%clk 0:01:49.1]} 23. gxf3 {[%clk 0:01:49.2]} 23... Bxf3 {[%clk
0:01:50.2]} 24. Re4 {[%clk 0:00:54.5]} 24... Qg5+ {[%clk 0:01:39.9]} 25. Kf1
{[%clk 0:00:55]} 25... Qg2+ {[%clk 0:01:39]} 26. Ke1 {[%clk 0:00:55.9]} 26...
Bxe4 {[%clk 0:01:39.9]} 27. Qe2 {[%clk 0:00:55]} 27... Bh6 {[%clk 0:01:31.2]}
28. Rc3 {[%clk 0:00:47.6]} 28... Qg1+ {[%clk 0:01:11.5]} 29. Qf1 {[%clk
0:00:48.4]} 29... Qxf1+ {[%clk 0:01:12.1]} 30. Kxf1 {[%clk 0:00:50]} 30... Rf8
{[%clk 0:01:04.7]} 31. Ra3 {[%clk 0:00:49.3]} 31... Bd2 {[%clk 0:00:53.4]} 32.
Rxa7 {[%clk 0:00:46]} 32... Bd3+ {[%clk 0:00:51.2]} 33. Kg1 {[%clk 0:00:45.3]}
33... Rf5 {[%clk 0:00:43.8]} 34. h4 {[%clk 0:00:43.8]} 34... Rf7 {[%clk
0:00:32.2]} 35. c5 {[%clk 0:00:42]} 35... Bxb4 {[%clk 0:00:29.5]} 36. cxb6
{[%clk 0:00:42.2]} 36... cxb6 {[%clk 0:00:28.9]} 37. Ra8+ {[%clk 0:00:34.8]}
37... Kg7 {[%clk 0:00:28.9]} 38. Bc1 {[%clk 0:00:29.2]} 38... Bc5 {[%clk
0:00:26.9]} 39. h5 {[%clk 0:00:17]} 39... gxh5 {[%clk 0:00:27.3]} 40. Bg5 {[%clk
0:00:15.2]} 40... Rxf2 {[%clk 0:00:24.8]} 41. Kh1 {[%clk 0:00:11.4]} 41... Be4+
{[%clk 0:00:24.3]} 42. Kg1 {[%clk 0:00:12.2]} 42... Rf8+ {[%clk 0:00:23.1]} 0-1

[Event "*** Titled Tuesday Blitz"]
[Site "Chess.com"]
[Date "2019.01.01"]
[Round "7"]
[White "LucaBrasi1968"]
[Black "MikeSailer"]
[Result "1-0"]
[WhiteElo "2376"]
[BlackElo "2101"]
[TimeControl "180+2"]
[EndTime "14:39:53 PST"]
[Termination "LucaBrasi1968 won by resignation"]

1. e4 {[%clk 0:03:01.9]} 1... d5 {[%clk 0:03:00.6]} 2. exd5 {[%clk 0:03:02.3]}
2... Qxd5 {[%clk 0:03:01.9]} 3. Nc3 {[%clk 0:03:02.6]} 3... Qd8 {[%clk 0:03:03]}
4. Bc4 {[%clk 0:03:03.9]} 4... Nf6 {[%clk 0:03:03.7]} 5. Nge2 {[%clk 0:03:04.9]}
5... a6 {[%clk 0:03:05.3]} 6. O-O {[%clk 0:03:05.2]} 6... b5 {[%clk 0:03:06]} 7.
Bb3 {[%clk 0:03:06.4]} 7... e6 {[%clk 0:03:07.5]} 8. d4 {[%clk 0:03:06.3]} 8...
Bb7 {[%clk 0:03:09]} 9. Bg5 {[%clk 0:03:04.2]} 9... Be7 {[%clk 0:03:10.3]} 10.
a4 {[%clk 0:02:57.7]} 10... b4 {[%clk 0:03:11]} 11. Nb1 {[%clk 0:02:57.2]} 11...
a5 {[%clk 0:03:12.8]} 12. c4 {[%clk 0:02:57.5]} 12... bxc3 {[%clk 0:03:07.2]}
13. bxc3 {[%clk 0:02:57.8]} 13... O-O {[%clk 0:03:08]} 14. Nd2 {[%clk
0:02:58.4]} 14... Nbd7 {[%clk 0:03:07.9]} 15. Rb1 {[%clk 0:02:58]} 15... Rb8
{[%clk 0:02:58.4]} 16. Nc4 {[%clk 0:02:54.9]} 16... Be4 {[%clk 0:02:36.3]} 17.
Bc2 {[%clk 0:02:48.5]} 17... Bxc2 {[%clk 0:02:35.3]} 18. Qxc2 {[%clk 0:02:48.9]}
18... Rxb1 {[%clk 0:02:32.1]} 19. Rxb1 {[%clk 0:02:48.2]} 19... c5 {[%clk
0:02:33.1]} 20. Be3 {[%clk 0:02:42.3]} 20... cxd4 {[%clk 0:02:33]} 21. Bxd4
{[%clk 0:02:42.3]} 21... Nd5 {[%clk 0:02:27.8]} 22. Rb5 {[%clk 0:02:38]} 22...
Qc7 {[%clk 0:02:14]} 23. Nxa5 {[%clk 0:02:37.1]} 23... Ra8 {[%clk 0:02:00.6]}
24. Nb3 {[%clk 0:01:51.9]} 24... Rxa4 {[%clk 0:01:56.7]} 25. g3 {[%clk
0:01:53.1]} 25... Rc4 {[%clk 0:01:30.3]} 26. Qd3 {[%clk 0:01:48.3]} 26... h6
{[%clk 0:01:21.9]} 27. Nd2 {[%clk 0:01:41.2]} 27... Ra4 {[%clk 0:01:17.6]} 28.
Nf3 {[%clk 0:01:37.9]} 28... Ra1+ {[%clk 0:00:55.5]} 29. Rb1 {[%clk 0:01:33.8]}
29... Rxb1+ {[%clk 0:00:56.5]} 30. Qxb1 {[%clk 0:01:34]} 30... N7b6 {[%clk
0:00:55]} 31. Qd3 {[%clk 0:01:34.1]} 31... Nc4 {[%clk 0:00:54.9]} 32. h4 {[%clk
0:01:22.4]} 32... f6 {[%clk 0:00:48.2]} 33. Qe4 {[%clk 0:01:18.8]} 33... Qc6
{[%clk 0:00:47.8]} 34. Nf4 {[%clk 0:01:14]} 34... Kf7 {[%clk 0:00:39.8]} 35.
Qg6+ {[%clk 0:01:13.5]} 35... Kg8 {[%clk 0:00:40]} 36. Nh5 {[%clk 0:01:11.5]}
36... Bf8 {[%clk 0:00:27.8]} 37. Bxf6 {[%clk 0:01:10]} 37... Ne7 {[%clk
0:00:21.4]} 38. Bxe7 {[%clk 0:01:08.3]} 38... Qxf3 {[%clk 0:00:22.8]} 39. Bxf8
{[%clk 0:00:59.5]} 39... Qd1+ {[%clk 0:00:18.3]} 40. Kh2 {[%clk 0:00:57.3]}
40... Kxf8 {[%clk 0:00:15.5]} 41. Qxg7+ {[%clk 0:00:50.7]} 41... Ke8 {[%clk
0:00:16.4]} 42. Nf6+ {[%clk 0:00:51.8]} 42... Kd8 {[%clk 0:00:16.7]} 43. Qf8+
{[%clk 0:00:51]} 43... Kc7 {[%clk 0:00:16.4]} 44. Qc5+ {[%clk 0:00:51.5]} 44...
Kd8 {[%clk 0:00:14.5]} 45. Qxc4 {[%clk 0:00:51.2]} 45... Qf3 {[%clk 0:00:15.6]}
46. Qd4+ {[%clk 0:00:51.9]} 46... Ke7 {[%clk 0:00:16.1]} 47. Ne4 {[%clk
0:00:52.8]} 47... e5 {[%clk 0:00:15.9]} 48. Qxe5+ {[%clk 0:00:49.5]} 48... Kd8
{[%clk 0:00:17.6]} 49. Qf6+ {[%clk 0:00:48.5]} 49... Qxf6 {[%clk 0:00:18.2]} 50.
Nxf6 {[%clk 0:00:49.5]} 1-0

[Event "*** Titled Tuesday Blitz"]
[Site "Chess.com"]
[Date "2019.01.01"]
[Round "7"]
[White "Hrant_ChessMood"]
[Black "Kacparov"]
[Result "1/2-1/2"]
[WhiteElo "2947"]
[BlackElo "2766"]
[TimeControl "180+2"]
[EndTime "14:39:57 PST"]
[Termination "Game drawn by repetition"]

1. e4 {[%clk 0:03:01.9]} 1... c5 {[%clk 0:03:00.4]} 2. Nf3 {[%clk 0:03:01.9]}
2... e6 {[%clk 0:03:00.9]} 3. d4 {[%clk 0:02:57.4]} 3... cxd4 {[%clk 0:03:02.8]}
4. Nxd4 {[%clk 0:02:57.3]} 4... Nc6 {[%clk 0:02:57.2]} 5. Nc3 {[%clk 0:02:56.8]}
5... Qc7 {[%clk 0:02:58.1]} 6. Ndb5 {[%clk 0:02:56.8]} 6... Qb8 {[%clk 0:02:59]}
7. f4 {[%clk 0:02:58]} 7... a6 {[%clk 0:02:59.7]} 8. Nd4 {[%clk 0:02:58.5]} 8...
b5 {[%clk 0:02:59.3]} 9. Be3 {[%clk 0:02:53.9]} 9... Bb7 {[%clk 0:03:00.1]} 10.
Bd3 {[%clk 0:02:48.5]} 10... Nf6 {[%clk 0:02:57.8]} 11. Qe2 {[%clk 0:02:37.4]}
11... Nxd4 {[%clk 0:02:54.8]} 12. Bxd4 {[%clk 0:02:37.3]} 12... Qxf4 {[%clk
0:02:55.7]} 13. Rf1 {[%clk 0:02:34.3]} 13... Qd6 {[%clk 0:02:27]} 14. Bg1 {[%clk
0:02:24.3]} 14... Qe5 {[%clk 0:02:20.5]} 15. O-O-O {[%clk 0:02:22.1]} 15... Rc8
{[%clk 0:02:16.6]} 16. Kb1 {[%clk 0:01:36.3]} 16... Bc5 {[%clk 0:02:13.8]} 17.
g4 {[%clk 0:01:24.7]} 17... Bxg1 {[%clk 0:02:09.2]} 18. Rxg1 {[%clk 0:01:24.9]}
18... b4 {[%clk 0:02:10.4]} 19. Na4 {[%clk 0:01:24]} 19... O-O {[%clk
0:01:58.5]} 20. Nb6 {[%clk 0:01:12.8]} 20... Rc6 {[%clk 0:01:17.9]} 21. g5
{[%clk 0:01:09.5]} 21... Rxb6 {[%clk 0:01:15.6]} 22. gxf6 {[%clk 0:01:10.4]}
22... g6 {[%clk 0:01:14.7]} 23. Rdf1 {[%clk 0:01:03.9]} 23... Rb5 {[%clk
0:01:02.2]} 24. Bxb5 {[%clk 0:01:00.1]} 24... axb5 {[%clk 0:01:04.1]} 25. Qd2
{[%clk 0:01:01.1]} 25... Kh8 {[%clk 0:00:59.1]} 26. Qh6 {[%clk 0:00:54.8]} 26...
Rg8 {[%clk 0:01:00.1]} 27. Rg4 {[%clk 0:00:48.4]} 27... Bxe4 {[%clk 0:00:59]}
28. Rfg1 {[%clk 0:00:20.6]} 28... Bf5 {[%clk 0:00:51.6]} 29. Rh4 {[%clk
0:00:19.9]} 29... g5 {[%clk 0:00:51.1]} 30. Rh5 {[%clk 0:00:14.8]} 30... Qc5
{[%clk 0:00:42.5]} 31. Rc1 {[%clk 0:00:11.9]} 31... Qe3 {[%clk 0:00:34]} 32. h4
{[%clk 0:00:11.2]} 32... b3 {[%clk 0:00:17.4]} 33. axb3 {[%clk 0:00:12.1]} 33...
Bg6 {[%clk 0:00:10.8]} 34. Rxg5 {[%clk 0:00:09.4]} 34... Qf2 {[%clk 0:00:09.4]}
35. h5 {[%clk 0:00:06.6]} 35... Bxc2+ {[%clk 0:00:09.6]} 36. Rxc2 {[%clk
0:00:07]} 36... Qf1+ {[%clk 0:00:10.5]} 37. Rc1 {[%clk 0:00:07.2]} 37... Qd3+
{[%clk 0:00:11.7]} 38. Rc2 {[%clk 0:00:07.5]} 38... Qf1+ {[%clk 0:00:12.7]} 39.
Rc1 {[%clk 0:00:04.4]} 39... Qd3+ {[%clk 0:00:13.7]} 40. Rc2 {[%clk 0:00:02.6]}
40... Qf1+ {[%clk 0:00:10.8]} 41. Rc1 {[%clk 0:00:02.7]} 41... Qd3+ {[%clk
0:00:11.9]} 42. Rc2 {[%clk 0:00:04]} 1/2-1/2

[Event "*** Titled Tuesday Blitz"]
[Site "Chess.com"]
[Date "2019.01.01"]
[Round "7"]
[White "Kangoroo3000"]
[Black "Zq1"]
[Result "0-1"]
[WhiteElo "2638"]
[BlackElo "2481"]
[TimeControl "180+2"]
[EndTime "14:40:00 PST"]
[Termination "Zq1 won by resignation"]

1. d4 {[%clk 0:03:01.9]} 1... Nf6 {[%clk 0:02:59.9]} 2. c4 {[%clk 0:03:00.4]}
2... a6 {[%clk 0:03:00.9]} 3. Nc3 {[%clk 0:02:59.3]} 3... c5 {[%clk 0:02:58.8]}
4. d5 {[%clk 0:02:57.3]} 4... b5 {[%clk 0:02:59.3]} 5. cxb5 {[%clk 0:02:58.7]}
5... axb5 {[%clk 0:02:59.5]} 6. Nxb5 {[%clk 0:03:00.2]} 6... Qa5+ {[%clk
0:02:59]} 7. Nc3 {[%clk 0:02:58.7]} 7... Bb7 {[%clk 0:03:00]} 8. Bd2 {[%clk
0:02:53.6]} 8... Qb6 {[%clk 0:03:00.3]} 9. e4 {[%clk 0:02:53.3]} 9... e6 {[%clk
0:03:00]} 10. dxe6 {[%clk 0:02:48.7]} 10... fxe6 {[%clk 0:03:00.4]} 11. Bd3
{[%clk 0:02:46.9]} 11... Nc6 {[%clk 0:02:58.3]} 12. Nf3 {[%clk 0:02:43.8]} 12...
Nb4 {[%clk 0:02:58.1]} 13. Bb1 {[%clk 0:02:42.3]} 13... Ba6 {[%clk 0:02:42]} 14.
Be3 {[%clk 0:02:28.3]} 14... Be7 {[%clk 0:02:31.5]} 15. Ne2 {[%clk 0:02:23.1]}
15... Ng4 {[%clk 0:02:20.6]} 16. Bf4 {[%clk 0:02:17.7]} 16... O-O {[%clk
0:02:20.2]} 17. Bg3 {[%clk 0:02:17.2]} 17... c4 {[%clk 0:02:14.6]} 18. O-O
{[%clk 0:02:14.8]} 18... Nd3 {[%clk 0:02:14.3]} 19. h3 {[%clk 0:02:08.1]} 19...
Qxb2 {[%clk 0:02:01.6]} 20. Bxd3 {[%clk 0:01:50.3]} 20... cxd3 {[%clk
0:02:00.5]} 21. Nf4 {[%clk 0:01:44.6]} 21... Nf6 {[%clk 0:01:52.1]} 22. Nxd3
{[%clk 0:01:39.5]} 22... Qa3 {[%clk 0:01:51.5]} 23. Nde5 {[%clk 0:01:26.3]}
23... Bxf1 {[%clk 0:01:48.7]} 24. Qxf1 {[%clk 0:01:09.2]} 24... Nxe4 {[%clk
0:01:49.2]} 25. Nxd7 {[%clk 0:01:06.2]} 25... Nxg3 {[%clk 0:01:46.7]} 26. Qe1
{[%clk 0:00:51]} 26... Nf5 {[%clk 0:01:27.5]} 27. Qxe6+ {[%clk 0:00:43.2]} 27...
Kh8 {[%clk 0:01:25.9]} 28. Nxf8 {[%clk 0:00:43.6]} 28... Rxf8 {[%clk 0:01:24.5]}
29. Rd1 {[%clk 0:00:38.5]} 29... Qa4 {[%clk 0:01:06.6]} 30. Rd7 {[%clk
0:00:34.8]} 30... Qf4 {[%clk 0:00:41]} 31. Rxe7 {[%clk 0:00:25.2]} 31... Nxe7
{[%clk 0:00:39.2]} 32. Qxe7 {[%clk 0:00:27.1]} 32... Qf7 {[%clk 0:00:39.3]} 33.
Qe2 {[%clk 0:00:25.2]} 33... Ra8 {[%clk 0:00:38.4]} 34. Ne5 {[%clk 0:00:18.5]}
34... Qxa2 {[%clk 0:00:35.8]} 35. Qe4 {[%clk 0:00:18.5]} 35... Rf8 {[%clk
0:00:32.6]} 36. Nf3 {[%clk 0:00:14.9]} 36... Qa7 {[%clk 0:00:29.8]} 37. Qb4
{[%clk 0:00:11.9]} 37... Re8 {[%clk 0:00:26.3]} 38. Qh4 {[%clk 0:00:11.8]} 38...
h6 {[%clk 0:00:22.9]} 39. Qh5 {[%clk 0:00:12.8]} 39... Re2 {[%clk 0:00:19.4]}
40. Qg6 {[%clk 0:00:04.8]} 40... Qxf2+ {[%clk 0:00:18]} 41. Kh1 {[%clk
0:00:06.2]} 41... Qf1+ {[%clk 0:00:14.8]} 42. Kh2 {[%clk 0:00:06.3]} 42... Qxf3
{[%clk 0:00:13.7]} 43. Qe8+ {[%clk 0:00:02.7]} 43... Rxe8 {[%clk 0:00:13.4]} 0-1

[Event "*** Titled Tuesday Blitz"]
[Site "Chess.com"]
[Date "2019.01.01"]
[Round "7"]
[White "Saitama_Hero"]
[Black "TreinadorBR"]
[Result "1-0"]
[WhiteElo "2381"]
[BlackElo "2241"]
[TimeControl "180+2"]
[EndTime "14:40:06 PST"]
[Termination "Saitama_Hero won on time"]

1. e4 {[%clk 0:03:01.9]} 1... c5 {[%clk 0:02:58.9]} 2. Nf3 {[%clk 0:03:02.4]}
2... e6 {[%clk 0:02:59.8]} 3. c4 {[%clk 0:03:00.6]} 3... Nc6 {[%clk 0:02:58.3]}
4. Nc3 {[%clk 0:03:02.1]} 4... Nd4 {[%clk 0:02:57.3]} 5. g3 {[%clk 0:02:59.1]}
5... g6 {[%clk 0:02:56.3]} 6. Bg2 {[%clk 0:02:59.6]} 6... Bg7 {[%clk 0:02:56.9]}
7. O-O {[%clk 0:03:01]} 7... Ne7 {[%clk 0:02:56.4]} 8. d3 {[%clk 0:03:01.9]}
8... Nec6 {[%clk 0:02:54.1]} 9. Be3 {[%clk 0:03:02.8]} 9... O-O {[%clk
0:02:49.6]} 10. Qd2 {[%clk 0:03:04.1]} 10... Re8 {[%clk 0:02:46.6]} 11. Ne1
{[%clk 0:02:57.5]} 11... d6 {[%clk 0:02:45.5]} 12. f4 {[%clk 0:02:57.4]} 12...
Rb8 {[%clk 0:02:46.2]} 13. Nf3 {[%clk 0:02:46]} 13... a6 {[%clk 0:02:45.2]} 14.
g4 {[%clk 0:02:37.9]} 14... b5 {[%clk 0:02:43.5]} 15. f5 {[%clk 0:02:36.2]}
15... exf5 {[%clk 0:02:42.5]} 16. gxf5 {[%clk 0:02:36.4]} 16... bxc4 {[%clk
0:02:41.4]} 17. dxc4 {[%clk 0:02:35.3]} 17... Nxf3+ {[%clk 0:02:15.4]} 18. Bxf3
{[%clk 0:02:37.2]} 18... Bxf5 {[%clk 0:02:14.4]} 19. Bg5 {[%clk 0:02:33.7]}
19... Bd4+ {[%clk 0:02:12.2]} 20. Kh1 {[%clk 0:02:29.8]} 20... f6 {[%clk
0:02:11.3]} 21. exf5 {[%clk 0:02:29.1]} 21... fxg5 {[%clk 0:02:09.3]} 22. Bxc6
{[%clk 0:02:28.2]} 22... Re5 {[%clk 0:01:36.9]} 23. fxg6 {[%clk 0:02:23.7]}
23... hxg6 {[%clk 0:01:36.5]} 24. Bd5+ {[%clk 0:02:25]} 24... Kg7 {[%clk
0:01:28.2]} 25. Rf7+ {[%clk 0:02:23.7]} 25... Kh6 {[%clk 0:01:28.1]} 26. Qg2
{[%clk 0:02:16.9]} 26... Qc8 {[%clk 0:01:18.7]} 27. Ne4 {[%clk 0:02:14.4]} 27...
Rxb2 {[%clk 0:01:15.9]} 28. Qg3 {[%clk 0:02:14.9]} 28... Rxe4 {[%clk 0:00:30.6]}
29. Bxe4 {[%clk 0:02:13.3]} 29... Be5 {[%clk 0:00:31.1]} 30. Qf3 {[%clk
0:00:47.4]} 30... Rxh2+ {[%clk 0:00:22.7]} 31. Kg1 {[%clk 0:00:49]} 31... Rh3
{[%clk 0:00:22]} 32. Rh7+ {[%clk 0:00:38.9]} 32... Kxh7 {[%clk 0:00:18.3]} 33.
Qf7+ {[%clk 0:00:40.4]} 33... Kh8 {[%clk 0:00:17.7]} 34. Rf1 {[%clk 0:00:35.9]}
34... Bd4+ {[%clk 0:00:09.5]} 35. Rf2 {[%clk 0:00:30.9]} 35... Bxf2+ {[%clk
0:00:07.3]} 36. Kxf2 {[%clk 0:00:32.8]} 36... Rh4 {[%clk 0:00:03]} 37. Qf6+
{[%clk 0:00:31.4]} 37... Kg8 {[%clk 0:00:03.3]} 38. Qxg6+ {[%clk 0:00:32.1]}
38... Kf8 {[%clk 0:00:02.2]} 39. Qf6+ {[%clk 0:00:33.3]} 39... Ke8 {[%clk
0:00:01.2]} 40. Bg6+ {[%clk 0:00:33.2]} 1-0